bitfinex/quotes_SOLUSD_20240918
["timestamp","ask_amount","ask_price","bid_price","bid_amount"]
[1726618910019,0.2715687,131.13,131.08,7.6289]
[1726618910919,7.8975687,131.13,131.08,7.6289]
[1726618912022,0.2715687,131.13,131.08,7.6289]
[1726618913310,0.2715687,131.13,131.08,7.75439]
[1726618913610,0.2715687,131.13,131.08,7.6289]
[1726618913800,7.8976687,131.13,131.08,7.6289]
[1726618914925,7.6266,131.12,131.08,7.6289]
[1726618915294,0.2715687,131.13,131.08,7.6289]
[1726618915493,7.8977687,131.13,131.08,7.6289]
[1726618915792,7.6266,131.12,131.08,7.6289]
[1726618916715,7.6266,131.12,131.07,7.6294]
[1726618916914,7.6272,131.11,131.07,7.6294]
[1726618917121,16.2896687,131.13,131.07,7.6294]
[1726618917305,7.6267,131.12,131.07,7.6294]
[1726618918420,7.6272,131.11,131.07,7.6294]
[1726618918716,14.2329,131.11,131.03,0.25098]
[1726618919326,14.2329,131.11,131.06,7.6295]
[1726618919696,14.2329,131.11,131.07,7.6294]
[1726618920426,6.6057,131.11,131.07,7.6294]
[1726618920926,6.6057,131.11,131.08,7.6289]
[1726618921227,6.6057,131.11,131.07,7.6294]
[1726618921721,6.6057,131.11,131.08,7.6289]
[1726618921913,7.6267,131.12,131.08,7.6289]
[1726618921914,16.2896687,131.13,131.08,7.6289]
[1726618924912,23.9158687,131.13,131.08,7.6289]
[1726618925217,23.9158687,131.13,131.02,16.5162]
[1726618925218,31.404784,131.1,131.02,16.5162]
[1726618925398,23.776884,131.1,131.03,7.6314]
[1726618925602,14.0121,131.08,131.03,7.6314]
[1726618926030,14.0121,131.08,131.05,7.6306]
[1726618926031,6.3831,131.08,131.05,7.6306]
[1726618926199,6.3831,131.08,131.06,7.63]
[1726618926397,6.3831,131.08,131.05,7.6305]
[1726618927222,6.3831,131.08,131.06,7.63]
[1726618928820,6.3831,131.08,131.04,7.6311]
[1726618930822,6.3831,131.08,131.05,7.6305]
[1726618932603,7.6299,131.07,130.99,37.83699817]
[1726618932806,14.012,131.08,130.99,6.4065702]
[1726618933026,23.776884,131.07,131.03,7.6314]
[1726618934914,23.776884,131.07,131.04,7.6311]
[1726618935710,23.776884,131.07,131.0,0.25098]
[1726618935711,23.776884,131.07,131.03,7.6316]
[1726618937328,31.406484,131.07,131.03,7.6316]
[1726618937632,31.406484,131.07,131.02,7.6322]
[1726618938224,31.406484,131.07,131.03,7.6316]
[1726618938424,23.776884,131.07,131.03,7.6316]
[1726618939722,31.406484,131.07,131.03,7.6316]
[1726618940424,14.0121,131.08,131.04,7.6311]
[1726618941016,6.3831,131.08,131.05,7.6305]
[1726618941223,6.3831,131.08,131.04,7.6311]
[1726618941906,6.3831,131.08,131.05,7.6305]
[1726618943009,23.776884,131.07,131.02,7.6323]
[1726618943216,23.776884,131.07,130.99,0.1395702]
[1726618943217,23.776884,131.07,131.01,7.6325]
[1726618943428,7.6305,131.06,131.01,7.6325]
[1726618943817,7.6305,131.06,131.02,7.6322]
[1726618944236,23.776884,131.07,131.03,7.6317]
[1726618944237,31.406484,131.07,131.03,7.6317]
[1726618945942,6.3831,131.08,131.07,7.6295]
[1726618946117,6.3831,131.08,131.06,7.63]
[1726618946442,6.3831,131.08,131.02,0.25098]
[1726618948918,6.3831,131.08,131.05,7.6302]
[1726618949244,6.3831,131.08,131.06,7.63]
[1726618949841,6.3831,131.08,131.02,0.25098]
[1726618949842,6.3831,131.08,131.04,7.6308]
[1726618950727,6.3831,131.08,131.05,7.6306]
[1726618951644,0.1455207,131.09,131.05,7.6306]
[1726618954319,7.7739207,131.09,131.05,7.6306]
[1726618954527,7.6291,131.08,131.04,7.6311]
[1726618957748,7.6297,131.07,131.03,7.6316]
[1726618960229,7.629,131.08,131.04,7.631]
[1726618960668,23.776884,131.07,131.04,7.631]
[1726618963757,23.776884,131.07,131.0,0.25098]
[1726618963758,7.7739207,131.09,131.05,7.6306]
[1726618965458,7.7739207,131.09,131.04,7.631]
[1726618967842,7.7739207,131.09,131.05,7.6305]
[1726618969529,0.1455207,131.09,131.07,7.629]
[1726618972359,0.1455207,131.09,131.08,7.6289]
[1726618973263,0.1455207,131.09,131.08,7.87988]
[1726618973563,0.1455207,131.09,131.08,7.6289]
[1726618973762,0.1455207,131.09,131.06,0.12549]
[1726618974360,0.1455207,131.09,131.08,7.6289]
[1726618977353,0.1455207,131.09,131.07,7.6293]
[1726618977538,0.1455207,131.09,131.08,7.6289]
[1726618980370,0.1455207,131.09,131.07,7.6293]
[1726618980947,7.7743207,131.09,131.05,7.6306]
[1726618981156,0.1455207,131.09,131.05,7.6306]
[1726618982562,7.7738207,131.09,131.05,7.6306]
[1726618982758,7.6289,131.08,131.04,7.6311]
[1726618984074,7.6301,131.06,131.01,7.6324]
[1726618984243,7.6301,131.06,131.02,7.632]
[1726618985043,31.406484,131.07,131.02,7.632]
[1726618985565,31.406484,131.07,131.03,7.6316]
[1726618986155,14.0304,131.08,131.03,7.6316]
[1726618988573,6.4014,131.08,131.02,0.25098]
[1726618988769,6.4014,131.08,131.05,7.6305]
[1726618989872,6.4014,131.08,131.04,7.6311]
[1726618990265,14.0303,131.08,131.04,7.6311]
[1726618992250,7.6296,131.07,131.03,7.6316]
[1726618992458,7.6296,131.07,131.0,0.25098]
[1726618992775,7.6296,131.07,131.01,7.6325]
[1726618992776,7.6306,131.06,131.01,7.6325]
[1726618993151,31.406484,131.07,131.02,7.6323]
[1726618996884,0.1455207,131.09,131.04,0.12549]
[1726618997053,7.6289,131.08,131.04,7.6308]
[1726618997369,0.1455207,131.09,131.02,19.72838317]
[1726618997856,0.1455207,131.09,131.05,7.6305]
[1726618998682,0.1455207,131.09,131.06,7.6299]
[1726618999172,0.1455207,131.09,131.05,0.25098]
[1726618999887,0.1455207,131.09,131.07,7.6293]
[1726619001178,0.1455207,131.09,131.08,7.6289]
[1726619001557,0.1455207,131.09,131.07,7.6293]
[1726619001760,0.1455207,131.09,131.06,7.6299]
[1726619002679,0.1455207,131.09,131.05,7.6305]
[1726619003386,0.1455207,131.09,131.06,7.63]
[1726619004277,7.7742207,131.09,131.04,7.6311]
[1726619004480,7.7742207,131.09,131.03,7.6312]
[1726619004481,7.6294,131.08,131.03,7.6312]
[1726619004968,7.6294,131.08,131.04,7.631]
[1726619005679,7.6289,131.08,131.04,7.6312]
[1726619005877,7.6289,131.08,131.03,7.6318]
[1726619007276,7.6295,131.07,131.03,7.6318]
[1726619008361,7.6295,131.07,131.01,0.12549]
[1726619008561,7.63,131.06,131.02,7.6322]
[1726619008968,7.6296,131.07,131.02,7.6322]
[1726619010185,7.6307,131.05,130.99,0.2359854]
[1726619010485,7.6314,131.04,131.0,7.6335]
[1726619010665,6.4406,131.06,130.99,7.7444954]
[1726619010666,7.6319,131.03,130.99,7.7444954]
[1726619010863,6.4406,131.06,130.99,7.7444954]
[1726619010864,7.6314,131.04,130.99,7.7444954]
[1726619012488,7.6319,131.03,130.99,7.7444954]
[1726619016562,7.6325,131.02,130.99,0.1104954]
[1726619019495,7.633,131.01,130.99,0.1104954]
[1726619019869,7.6324,131.02,130.99,0.1104954]
[1726619020562,28.67034507,131.06,130.99,7.7444954]
[1726619020563,7.6319,131.03,130.99,7.7444954]
[1726619021473,7.6319,131.03,130.99,0.1104954]
[1726619021790,7.6314,131.04,131.0,7.6333]
[1726619021970,7.6314,131.04,131.0,20.18918657]
[1726619022171,7.6307,131.05,131.01,7.6329]
[1726619022371,17.22464507,131.06,131.01,7.6329]
[1726619022782,14.0708,131.06,131.01,7.6329]
[1726619023191,7.6306,131.05,131.01,7.6329]
[1726619024900,7.6306,131.05,131.0,20.18928657]
[1726619025078,7.6306,131.05,131.0,7.6334]
[1726619026099,23.776884,131.05,130.99,0.1104954]
[1726619026396,7.6324,131.02,130.99,0.1104954]
[1726619030504,7.6319,131.03,130.99,0.1104954]
[1726619031690,23.776884,131.05,130.99,0.1104954]
[1726619033404,7.6326,131.02,130.99,0.1104954]
[1726619037493,7.633,131.01,130.99,0.1104954]
[1726619039427,7.6335,131.0,130.99,0.1104954]
[1726619040422,23.776884,131.05,130.99,0.1104954]
[1726619040713,7.6323,131.03,130.99,0.1104954]
[1726619041302,7.6323,131.03,130.99,7.7444954]
[1726619041908,18.83103403,131.07,130.99,7.7444954]
[1726619041909,18.83103403,131.07,131.01,7.6329]
[1726619042220,7.6301,131.06,131.02,7.6323]
[1726619042428,7.6293,131.08,131.03,7.6316]
[1726619042595,6.5911207,131.09,131.02,7.6323]
[1726619042596,7.6295,131.07,131.02,7.6323]
[1726619044109,7.6301,131.06,131.02,7.6323]
[1726619046603,7.6295,131.07,131.02,7.6323]
[1726619047021,7.6295,131.07,131.03,7.6317]
[1726619047224,6.5911207,131.09,131.03,7.6317]
[1726619048104,7.629,131.08,131.03,7.6317]
[1726619048419,0.1455207,131.09,131.05,7.6305]
[1726619048813,7.7738207,131.09,131.05,7.6305]
[1726619049706,0.1455207,131.09,131.05,7.6305]
[1726619050105,7.7738207,131.09,131.05,7.6305]
[1726619052502,7.7738207,131.09,131.03,7.6313]
[1726619052709,7.6291,131.08,131.03,7.6313]
[1726619053509,7.6296,131.07,131.02,7.6322]
[1726619054530,7.6296,131.07,131.01,19.607276]
[1726619054531,7.6301,131.06,131.01,7.6329]
[1726619054721,7.6301,131.06,131.02,0.12549]
[1726619055224,7.6301,131.06,131.02,0.25098]
[1726619056212,7.6301,131.06,131.02,7.6323]
[1726619056422,7.6295,131.07,131.02,7.6323]
[1726619058308,7.59941,131.07,131.03,7.6317]
[1726619058711,7.59941,131.07,131.02,7.6323]
[1726619061030,7.59941,131.07,131.03,7.6316]
[1726619061412,7.59941,131.07,131.02,7.6323]
[1726619062037,23.776884,131.07,131.0,15.4727]
[1726619062535,7.6317,131.04,131.0,15.4727]
[1726619062843,23.776884,131.07,130.99,0.1104954]
[1726619063134,23.776884,131.05,130.99,0.1104954]
[1726619064230,7.6319,131.03,130.99,0.1104954]
[1726619064632,7.6314,131.04,130.99,7.7444954]
[1726619065721,7.6314,131.04,130.99,20.30072413]
[1726619066651,7.6318,131.03,130.99,20.30072413]
[1726619066857,7.6318,131.03,130.99,7.7444954]
[1726619067512,7.6318,131.03,130.99,0.1104954]
[1726619068014,7.6325,131.02,130.99,0.1104954]
[1726619071337,7.6331,131.01,130.99,0.1104954]
[1726619072121,23.776884,131.05,130.99,0.1104954]
[1726619072122,7.6335,131.0,130.99,0.1104954]
[1726619072635,31.410384,131.0,130.99,0.1104954]
[1726619077329,31.410384,131.0,130.95,0.2560161]
[1726619077330,7.6359,130.96,130.95,0.2560161]
[1726619085838,31.412784,130.96,130.95,0.2560161]
[1726619086254,7.6359,130.96,130.95,0.2560161]
[1726619095964,19.0848,131.0,130.95,0.2560161]
[1726619096136,6.5412,131.01,130.95,7.8924161]
[1726619096643,7.6337,131.0,130.96,7.6355]
[1726619096839,7.6337,131.0,130.95,7.8923161]
[1726619097040,7.6343,130.99,130.95,7.8923161]
[1726619097654,7.6337,131.0,130.95,7.8923161]
[1726619097867,7.6337,131.0,130.95,20.44854483]
[1726619099665,7.6337,131.0,130.95,7.8923161]
[1726619100050,7.6337,131.0,130.95,20.44854483]
[1726619100548,7.6337,131.0,130.95,7.8923161]
[1726619100947,7.6352,130.98,130.95,0.2560161]
[1726619107774,7.6354,130.97,130.95,0.2560161]
[1726619109172,7.6349,130.98,130.95,0.2560161]
[1726619110875,15.3357,131.03,130.97,12.55622873]
[1726619111782,7.6334,131.01,130.96,20.19192873]
[1726619111957,7.6337,131.0,130.96,20.19192873]
[1726619112158,7.6337,131.0,130.96,7.6357]
[1726619113978,7.6341,130.99,130.95,15.7566161]
[1726619114172,15.3357,131.03,130.95,15.7566161]
[1726619114173,7.6348,130.98,130.95,15.7566161]
[1726619119092,7.6342,130.99,130.95,23.3929161]
[1726619123349,23.776884,131.01,130.95,23.3929161]
[1726619123569,7.6337,131.0,130.95,23.3929161]
[1726619125185,7.6342,130.99,130.95,23.3929161]
[1726619125984,7.6322,131.03,130.98,12.55622873]
[1726619126178,6.43281716,131.05,130.98,12.55622873]
[1726619126389,7.6313,131.04,130.99,7.6336]
[1726619126762,7.6319,131.03,130.98,20.19082873]
[1726619127192,7.6327,131.02,130.98,7.6346]
[1726619129187,7.6319,131.03,130.98,7.6346]
[1726619133868,7.6319,131.03,130.99,7.634]
[1726619134375,23.776884,131.05,131.0,7.6335]
[1726619134572,23.776884,131.03,131.0,7.6335]
[1726619134777,23.776884,131.03,130.99,7.634]
[1726619135571,31.408684,131.03,130.99,7.634]
[1726619137495,18.92200299,131.06,130.98,12.68171873]
[1726619137699,31.407884,131.05,131.0,7.6335]
[1726619141400,31.407884,131.05,131.01,7.6329]
[1726619141614,7.631,131.05,131.01,7.6329]
[1726619141995,23.776884,131.06,131.03,7.6316]
[1726619142176,21.76383326,131.09,131.02,12.55622873]
[1726619142576,21.76383326,131.09,131.03,7.6313]
[1726619142577,7.6293,131.08,131.03,7.6313]
[1726619142786,7.6293,131.08,131.03,20.18752873]
[1726619143715,7.6293,131.08,131.03,7.6313]
[1726619144089,23.776884,131.07,131.03,7.6313]
[1726619144490,23.776884,131.07,131.02,12.55622873]
[1726619145314,7.6293,131.08,131.02,12.55622873]
[1726619145315,7.8844161,131.09,131.03,12.80720873]
[1726619145615,0.2560161,131.09,131.04,12.55622873]
[1726619145786,7.8843161,131.09,131.05,7.6303]
[1726619146184,7.6289,131.08,131.03,12.80720873]
[1726619146630,7.8844161,131.09,131.05,12.55622873]
[1726619146802,7.8844161,131.09,131.04,20.18742873]
[1726619147316,0.2560161,131.09,131.05,7.6304]
[1726619148313,0.2560161,131.09,131.06,12.55622873]
[1726619148512,0.2560161,131.09,131.06,12.80720873]
[1726619148821,0.2560161,131.09,131.07,7.6293]
[1726619149199,7.8847161,131.09,131.05,23.4868]
[1726619149400,0.2560161,131.09,131.05,23.4868]
[1726619149609,0.2560161,131.09,131.06,7.6299]
[1726619149810,7.8844161,131.09,131.05,15.8563]
[1726619150114,7.8844161,131.09,131.05,23.4869]
[1726619150415,0.2560161,131.09,131.05,23.4869]
[1726619151018,0.2560161,131.09,131.06,12.68171873]
[1726619151228,0.2560161,131.09,131.07,20.18562873]
[1726619151514,0.2560161,131.09,131.07,7.6294]
[1726619153215,0.2560161,131.09,131.08,7.6289]
[1726619153393,0.2560161,131.09,131.08,7.75439]
[1726619156021,0.2560161,131.09,131.07,7.75479]
[1726619161821,0.2560161,131.09,131.08,7.6289]
[1726619162022,0.2560161,131.09,131.08,7.87988]
[1726619162523,0.2560161,131.09,131.08,21.19226715]
[1726619163012,0.2560161,131.09,131.08,20.43610873]
[1726619165022,0.2560161,131.09,131.08,7.87988]
[1726619165200,0.2560161,131.09,131.08,7.6289]
[1726619165405,0.2560161,131.09,131.07,7.6294]
[1726619165925,0.2560161,131.09,131.08,7.6289]
[1726619166822,0.2560161,131.09,131.08,20.18512873]
[1726619167401,0.2560161,131.09,131.08,20.31061873]
[1726619167609,0.2560161,131.09,131.08,20.43610873]
[1726619174606,0.2560161,131.09,131.08,7.87988]
[1726619174809,0.2560161,131.09,131.08,7.6289]
[1726619176232,0.2560161,131.09,131.08,20.43610873]
[1726619178128,0.2560161,131.09,131.08,7.87988]
[1726619178909,0.2560161,131.09,131.08,20.43610873]
[1726619185843,0.2560161,131.09,131.08,7.87988]
[1726619189243,0.2560161,131.09,131.08,20.43610873]
[1726619195451,0.2560161,131.09,131.08,7.87988]
[1726619198565,0.2560161,131.09,131.08,20.43610873]
[1726619199229,0.2560161,131.09,131.08,7.87988]
[1726619200861,0.2560161,131.09,131.08,7.75439]
[1726619201039,0.2560161,131.09,131.03,7.96402022]
[1726619201357,7.8843161,131.09,131.05,7.6302]
[1726619201731,0.2560161,131.09,131.06,7.6299]
[1726619207436,0.2560161,131.09,131.07,7.75489]
[1726619209459,7.8845161,131.09,131.05,7.75589]
[1726619212457,0.2560161,131.09,131.06,7.75549]
[1726619218166,7.8845161,131.09,131.05,7.6305]
[1726619218345,7.629,131.08,131.03,0.25098]
[1726619218670,7.6307,131.05,131.0,7.97055339]
[1726619218879,0.2560161,131.09,130.99,12.55622873]
[1726619218880,7.6302,131.06,130.99,12.55622873]
[1726619219042,13.9802,131.07,131.01,12.55622873]
[1726619219376,13.9802,131.07,131.03,7.6317]
[1726619219662,7.6301,131.06,131.0,12.55622873]
[1726619220047,7.6301,131.06,131.01,0.12549]
[1726619220255,6.3507,131.07,130.98,27.68582873]
[1726619220256,7.6307,131.05,130.98,27.68582873]
[1726619220744,7.6301,131.06,131.01,7.6324]
[1726619220944,6.3507,131.07,131.01,7.6324]
[1726619220945,7.6307,131.05,131.01,7.6324]
[1726619221553,7.6307,131.05,131.02,0.12549]
[1726619224555,7.6307,131.05,131.0,7.6335]
[1726619224753,7.6313,131.04,131.0,7.6335]
[1726619226971,7.6318,131.03,130.97,12.55622873]
[1726619227168,23.4075,131.03,130.98,0.25098]
[1726619227860,23.4075,131.03,130.98,7.6344]
[1726619228249,23.4075,131.03,130.99,7.634]
[1726619228771,15.7757,131.03,131.0,7.6335]
[1726619229846,15.7757,131.03,131.0,0.12549]
[1726619230048,23.4077,131.03,130.99,7.634]
[1726619230272,15.7757,131.03,130.98,7.88558]
[1726619230472,23.4077,131.03,130.99,7.6339]
[1726619230974,6.6181,131.02,130.98,7.88548]
[1726619231273,6.6181,131.02,130.99,7.6341]
[1726619233853,21.7358,131.07,131.01,12.55622873]
[1726619234058,7.6302,131.06,131.02,7.6319]
[1726619234563,29.3653,131.07,131.03,7.75719]
[1726619235177,21.7358,131.07,131.03,7.75719]
[1726619237765,29.3653,131.07,131.03,7.6317]
[1726619237971,29.3653,131.07,131.02,12.68171873]
[1726619237972,29.3653,131.07,131.02,7.75779]
[1726619238377,31.407084,131.06,131.02,7.6323]
[1726619239359,29.3653,131.07,131.02,7.6323]
[1726619240277,29.3653,131.07,131.02,20.18852873]
[1726619241286,21.7358,131.07,131.03,12.55622873]
[1726619241474,21.7358,131.07,131.02,12.55622873]
[1726619241677,29.3654,131.07,131.03,0.12549]
[1726619242295,29.3654,131.07,131.03,7.75709]
[1726619246174,21.7358,131.07,131.03,7.75709]
[1726619247098,7.63,131.06,131.02,7.75779]
[1726619247405,7.63,131.06,131.02,7.6323]
[1726619247905,21.7358,131.07,131.02,7.6323]
[1726619248096,7.63,131.06,131.02,7.6323]
[1726619250277,7.63,131.06,131.01,7.88378]
[1726619250487,7.6307,131.05,131.01,7.88378]
[1726619255213,7.6301,131.06,131.02,7.6323]
[1726619255400,29.3655,131.07,131.02,7.6323]
[1726619256205,29.3654,131.07,131.03,7.75729]
[1726619256512,29.3654,131.07,131.02,7.6322]
[1726619257216,7.6301,131.06,131.03,0.12549]
[1726619257986,21.7358,131.07,131.02,12.68171873]
[1726619258187,21.7358,131.07,131.04,7.6311]
[1726619258995,29.3655,131.07,131.03,7.6317]
[1726619263129,29.3655,131.07,131.01,0.25098]
[1726619263293,7.6302,131.06,131.01,7.75829]
[1726619263494,7.6308,131.05,131.01,7.6328]
[1726619266115,31.407084,131.06,131.01,7.6328]
[1726619269599,7.6302,131.06,131.02,7.6322]
[1726619270202,29.3654,131.07,131.02,7.6322]
[1726619270619,29.3654,131.07,131.03,7.6317]
[1726619270803,21.7358,131.07,131.03,7.6317]
[1726619270998,21.7358,131.07,131.03,20.18792873]
[1726619271806,7.8843161,131.09,131.05,7.6302]
[1726619272005,0.2560161,131.09,131.05,20.18642873]
[1726619272213,0.2560161,131.09,131.06,7.88088]
[1726619275224,0.2560161,131.09,131.06,7.75539]
[1726619275421,0.2560161,131.09,131.06,7.6299]
[1726619276121,7.8844161,131.09,131.05,7.75589]
[1726619276329,7.6291,131.08,131.04,7.6312]
[1726619276503,7.6291,131.08,131.03,0.12549]
[1726619276706,7.6295,131.07,131.0,12.55622873]
[1726619276908,7.6302,131.06,131.02,7.6323]
[1726619278414,7.6302,131.06,131.02,7.1323]
[1726619280328,20.2560161,131.09,131.03,7.6317]
[1726619280639,23.776884,131.08,131.03,7.6317]
[1726619281321,7.6295,131.07,131.03,7.6317]
[1726619282935,31.405884,131.08,131.03,7.6317]
[1726619283237,31.405884,131.08,131.04,7.6312]
[1726619283412,24.0329001,131.09,131.05,7.6302]
[1726619283730,0.2560161,131.09,131.05,7.6302]
[1726619284312,7.8844161,131.09,131.05,7.6302]
[1726619287622,7.8844161,131.09,131.04,7.88198]
[1726619290412,7.629,131.08,131.04,7.88198]
[1726619294820,0.2560161,131.09,131.04,0.25098]
[1726619295218,7.8845161,131.09,131.05,7.6305]
[1726619298826,7.8845161,131.09,131.04,7.88208]
[1726619302927,0.2560161,131.09,131.04,12.80720873]
[1726619303121,0.2560161,131.09,131.05,12.55622873]
[1726619303321,0.2560161,131.09,131.06,7.6297]
[1726619307141,7.8845161,131.09,131.05,7.6305]
[1726619307344,7.8845161,131.09,131.04,0.25098]
[1726619308118,7.8845161,131.09,131.04,7.88178]
[1726619308828,7.629,131.08,131.04,7.6308]
[1726619309540,7.629,131.08,131.03,7.88258]
[1726619309722,7.6295,131.07,131.03,7.88258]
[1726619310232,7.6295,131.07,131.03,7.75709]
[1726619312647,7.6295,131.07,131.03,7.6316]
[1726619313645,7.6289,131.08,131.04,7.6312]
[1726619320228,0.2560161,131.09,131.03,7.6316]
[1726619320229,7.6295,131.07,131.03,7.6316]
[1726619323252,7.6291,131.08,131.03,7.6316]
[1726619324262,7.6291,131.08,131.04,7.6309]
[1726619334168,0.2560161,131.09,131.05,7.6301]
[1726619334355,7.8848161,131.09,131.04,7.6311]
[1726619336676,7.8848161,131.09,131.05,7.6305]
[1726619336865,7.8848161,131.09,131.06,7.63]
[1726619336866,0.2560161,131.09,131.06,7.63]
[1726619337166,0.2560161,131.09,131.06,7.75549]
[1726619341573,0.2560161,131.09,131.06,0.12549]
[1726619343352,0.2560161,131.09,131.06,7.75539]
[1726619345876,7.8844161,131.09,131.06,0.12549]
[1726619346958,0.2560161,131.09,131.06,0.12549]
[1726619349074,0.2560161,131.09,131.06,7.63]
[1726619353276,0.2560161,131.09,131.05,7.75599]
[1726619353659,0.2560161,131.09,131.06,0.12549]
[1726619358988,0.2560161,131.09,131.06,7.75539]
[1726619366762,0.2560161,131.09,131.08,7.6289]
[1726619366972,0.2560161,131.09,131.07,7.75489]
[1726619370492,0.2560161,131.09,131.07,0.12549]
[1726619370667,0.2560161,131.09,131.06,0.25098]
[1726619370868,0.2560161,131.09,131.07,7.6294]
[1726619371083,0.2560161,131.09,131.06,0.25098]
[1726619371292,0.2560161,131.09,131.07,7.6293]
[1726619374400,0.2560161,131.09,131.06,7.88098]
[1726619375497,0.2560161,131.09,131.07,7.6294]
[1726619380181,0.2560161,131.09,131.06,7.88088]
[1726619380681,0.2560161,131.09,131.07,7.6294]
[1726619382100,7.8844161,131.09,131.06,0.25098]
[1726619382304,0.2560161,131.09,131.03,7.6316]
[1726619382484,22.971,131.08,130.97,26.14647218]
[1726619382693,23.776884,131.07,130.98,12.55622873]
[1726619383201,7.6301,131.06,131.01,7.633]
[1726619383712,7.6296,131.07,131.02,7.6322]
[1726619384484,7.6296,131.07,131.03,0.25098]
[1726619386107,22.971,131.08,131.02,0.25098]
[1726619386310,22.971,131.08,131.03,7.6317]
[1726619386311,30.5999,131.08,131.03,7.6317]
[1726619390121,7.6297,131.07,131.03,7.6317]
[1726619394524,7.6297,131.07,131.02,0.25098]
[1726619394525,23.776884,131.07,131.02,0.25098]
[1726619394732,7.631,131.05,131.0,7.6335]
[1726619395033,7.6313,131.04,130.99,7.6339]
[1726619395206,7.6314,131.04,130.99,7.6339]
[1726619395406,7.6314,131.04,131.0,7.6335]
[1726619395639,7.6314,131.04,130.98,7.6342]
[1726619395640,23.5352,131.04,130.98,7.6342]
[1726619395823,7.6319,131.03,130.99,7.6339]
[1726619396419,7.6319,131.03,130.98,7.6346]
[1726619397236,7.6319,131.03,130.99,0.25098]
[1726619398731,7.6319,131.03,130.99,7.88498]
[1726619401515,7.6319,131.03,130.98,7.6346]
[1726619401721,22.3576,131.04,130.94,16.3613]
[1726619401722,7.6337,131.0,130.94,16.3613]
[1726619401917,7.6337,131.0,130.95,7.8924161]
[1726619402847,23.8307,131.0,130.95,7.8924161]
[1726619403046,7.6343,130.99,130.95,7.8924161]
[1726619403215,7.6343,130.99,130.96,0.12549]
[1726619403415,16.197,131.0,130.95,7.8924161]
[1726619403416,29.904784,130.98,130.95,0.2560161]
[1726619403935,6.1279,130.98,130.95,0.2560161]
[1726619405617,13.7627,130.98,130.95,0.2560161]
[1726619406929,7.6354,130.97,130.95,0.2560161]
[1726619408150,13.7627,130.98,130.95,0.2560161]
[1726619409234,6.1279,130.98,130.95,0.2560161]
[1726619409441,6.1279,130.98,130.95,7.8924161]
[1726619409641,23.8307,131.0,130.96,7.76129]
[1726619412250,23.8307,131.0,130.95,0.2560161]
[1726619412251,7.6342,130.99,130.95,0.2560161]
[1726619412931,7.6342,130.99,130.95,7.8921161]
[1726619414051,7.6342,130.99,130.95,0.2560161]
[1726619414845,7.6342,130.99,130.95,7.8923161]
[1726619416850,7.6342,130.99,130.95,0.2560161]
[1726619417052,7.6353,130.97,130.95,0.2560161]
[1726619417955,7.6359,130.96,130.95,0.2560161]
[1726619418554,31.412784,130.96,130.95,0.2560161]
[1726619419661,39.445284,130.96,130.91,0.4934044]
[1726619419956,7.6382,130.92,130.91,0.4934044]
[1726619420254,31.415084,130.92,130.91,0.4934044]
[1726619420475,51.415084,130.92,130.91,0.4934044]
[1726619421239,66.526384,130.92,130.91,0.4934044]
[1726619427342,46.526384,130.92,130.91,0.4934044]
[1726619428151,6.1092,130.94,130.91,0.4934044]
[1726619428540,7.6371,130.94,130.91,0.4934044]
[1726619428736,6.6546,130.97,130.91,0.4934044]
[1726619429246,14.2899,130.97,130.92,7.6382]
[1726619429661,7.6353,130.97,130.92,20.19442873]
[1726619429962,23.4314,130.98,130.92,20.19442873]
[1726619430262,23.4314,130.98,130.93,7.6375]
[1726619430464,7.6348,130.98,130.93,7.6375]
[1726619430763,7.6342,130.99,130.94,7.6368]
[1726619430953,7.6336,131.0,130.94,20.19302873]
[1726619431351,16.6114,131.01,130.94,7.6368]
[1726619431352,7.6341,130.99,130.94,7.6368]
[1726619431862,16.6114,131.01,130.93,12.55622873]
[1726619432167,0.12549,131.0,130.95,7.6363]